Cogmind - Beta 12 *** ADVENTURER MODE // 2024.01.22 @ 18:59:14 Player: Occam Result: Self-destructed Performance ------------- Evolutions (3) 1500 Regions Visited (7) 1400 Robots Destroyed (164) 820 Value Destroyed (6196) 6196 Prototype IDs (43) 860 Alien Tech Used (0) 0 Bonus (1016) 1016 TOTAL SCORE: 11792 Bonus ------- High Alert Combat Kills 421 Follower Combat Kills 95 Entered Garrisons 200 Aligned with FarCom 300 Cogmind --------- Core Integrity 534/700 Matter 290/300 Energy 290/290 System Corruption 5% Temperature Cool (0) Movement Rolling (190) Ox6 Location -7/Factory Parts ------- > --- POWER (1) -------- Improved Deuterium Engine > --- PROPULSION (4) --- Light Treads Compact Wheel > --- UTILITY (6) ------ Improved Cooling System Huge Storage Unit Structural Scanner Improved Medium Armor Plating Hacking Suite System Restoration Module > --- WEAPON (2) ------- Gatling Laser Gatling Laser > --- INVENTORY (25) --- Improved Ion Engine Small Storage Unit High-capacity Matter Pod (200) Actuator Array ECM Suite Hardened Light Armor Plating Hardened Light Armor Plating Medium Reactive Plating Hardlight Generator Authchip [R/NC] Authchip [Propulsion] System Restoration Module Improved Trap Extractor (3/6 Shock) Advanced Beam Rifle Gatling Laser Gatling Laser Autogun Enhanced Autogun Gauss Rifle Flak Gun Rocket Launcher Heavy Missile Launcher Improved Datajack Katana Peak State ------------ > --- POWER ------------ Deuterium Engine > --- PROPULSION ------- Light Treads Armored Treads Armored Treads Compact Wheel > --- UTILITY ---------- Improved Cooling System Huge Storage Unit Structural Scanner Improved Medium Armor Plating Hardlight Generator Hacking Suite > --- WEAPON ----------- Gatling Laser Katana > --- INVENTORY -------- Improved Ion Engine Micro Nuclear Core Compact Wheel Cesium-ion Thruster Improved VTOL Module Improved VTOL Module Improved Cooling System High-capacity Matter Pod Structural Scanner Hacking Suite Hacking Suite Authchip [R/NC] Improved Trap Extractor Spread Laser Spread Laser Advanced Beam Rifle Gatling Laser Gatling Laser Firepult Enhanced Autogun Flak Gun Rocket Launcher Improved Datajack Power Maul [Rating: 43] Favorites ----------- Power Deuterium Engine Engine Deuterium Engine Power Core Light Nuclear Core Propulsion Armored Treads Treads Armored Treads Leg Aluminum Leg Wheel Compact Wheel Flight Unit Improved VTOL Module Utility Huge Storage Unit Device Structural Scanner Storage Huge Storage Unit Processor Transport Network Coupler Hackware Hacking Suite Protection Light Armor Plating Weapon Advanced Beam Rifle Energy Gun Advanced Beam Rifle Ballistic Gun Gauss Rifle Ballistic Cannon Bore Cannon Launcher Rocket Launcher Slashing Weapon Katana Special Melee Weapon Improved Datajack Build | -11 -10 -10 -10 -9 -8 -8 -7 ------- Run | Jun Mat Min Exi Min Mat Gar Fac Slots Evolved 6 | . . . . . 4 . 2 Power . | . . . . . . . . Propulsion 2 | . . . . . 1 . 1 Utility 4 | . . . . . 3 . 1 Weapon . | . . . . . . . . Parts Attached 144 | 4 12 7 2 8 52 23 36 Power 10 | . 2 2 . 1 3 . 2 Engine 8 | . 2 2 . 1 1 . 2 Core 2 | . . . . . 2 . . Reactor . | . . . . . . . . Propulsion 29 | 2 4 2 . 3 10 1 7 Treads 16 | 1 1 . . 2 8 . 4 Leg . | . . . . . . . . Wheel 12 | 1 3 2 . 1 1 1 3 Hover . | . . . . . . . . Flight 1 | . . . . . 1 . . Utility 42 | 1 3 1 . 2 20 2 13 Device 21 | 1 1 . . 1 10 . 8 Storage 2 | . 2 . . . . . . Processor 1 | . . . . . 1 . . Hackware 1 | . . . . . . . 1 Protection 17 | . . 1 . 1 9 2 4 Artifact . | . . . . . . . . Weapon 63 | 1 3 2 2 2 19 20 14 Energy Gun 15 | . 2 . 1 . 5 . 7 Energy Cannon . | . . . . . . . . Ballistic Gun 27 | 1 1 2 . . 10 10 3 Ballistic Cannon 1 | . . . . . 1 . . Launcher 9 | . . . . . . 9 . Special Weapon . | . . . . . . . . Impact Weapon . | . . . . . . . . Slashing Weapon 3 | . . . . 1 . . 2 Piercing Weapon . | . . . . . . . . Special Melee Weapon 8 | . . . 1 1 3 1 2 Unidentified Prototypes 4 | . . . . . 4 . . Corrupted Parts 4 | . . . . 4 . . . System Corruption 12 | . . . . 12 . . . Parts Lost 23 | . 2 3 . 1 5 3 9 Power 4 | . 1 1 . . 1 . 1 Propulsion 11 | . 1 2 . 1 1 1 5 Utility 6 | . . . . . 3 1 2 Weapon 2 | . . . . . . 1 1 Highest Loss Streak 4 | . 2 2 . 1 4 1 2 To Critical Strikes . | . . . . . . . . Average Slot Usage (%) 94 | . 98 99 100 99 92 89 93 Engine 7 | . 13 13 14 14 1 9 7 Core 2 | . . . . . 7 . . Treads 16 | . 14 14 14 13 17 18 16 Wheel 10 | . 13 13 14 14 8 9 8 Device 13 | . 14 12 . . 15 11 20 Storage 10 | . 14 14 14 14 9 9 7 Hackware 1 | . . . . . . . 6 Protection 9 | . . 1 14 13 11 14 8 Energy Gun 10 | . 12 14 1 13 8 9 12 Ballistic Gun 8 | . 14 14 14 14 8 6 1 Special Melee Weapon 1 | . . . 12 . . 2 . Naked Turns . | . . . . . . . . Heaviest Build 114 | 12 89 94 96 96 114 114 113 Greatest Support 32 | 20 16 16 10 20 16 16 32 Greatest Overweight (x) 9 | 1 5 9 9 9 7 7 7 Average Overweight (x) 6 | . 3 8 9 5 6 6 5 Largest Inventory Capacity 25 | 8 25 25 25 25 25 25 25 Average Capacity 24 | 8 19 25 25 25 25 25 25 Most Carried 25 | 7 20 25 25 25 25 25 25 Average Carried 22 | 6 14 21 24 24 24 24 21 Final Capacity 25 | 8 25 25 25 25 25 25 25 Final Carried 25 | 7 16 25 25 25 25 25 24 Class Distribution -------------------- 36% | Scavenger-Mutant 35% | Mutant 17% | Hacker-Mutant 10% | Scavenger-Skirmisher Dominant Class ---------------- Scavenger-Mutant | -10/Materials Scavenger-Mutant | -10/Mines Scavenger-Mutant | -10/Exiles Scavenger-Mutant | -9/Mines Mutant | -8/Materials Mutant | -8/Garrison Hacker-Mutant | -7/Factory Resources | -11 -10 -10 -10 -9 -8 -8 -7 ----------- Run | Jun Mat Min Exi Min Mat Gar Fac Matter Collected 3370 | 281 403 264 20 100 1239 682 381 Remotely . | . . . . . . . . Salvage Created 6308 | 103 690 337 . 229 2552 1064 1333 Parts 347 | 17 59 15 . 5 155 54 42 Haulers Intercepted 8 | . 1 . . . 6 . 1 Recyclers Shooed 4 | 1 1 1 . . 1 . . Parts Field Recycled . | . . . . . . . . Retrieved Matter . | . . . . . . . . Parts Self-Destructed . | . . . . . . . . Prevented . | . . . . . . . . Kills | -11 -10 -10 -10 -9 -8 -8 -7 ------- Run | Jun Mat Min Exi Min Mat Gar Fac Combat Hostiles Destroyed 124 | . 11 7 . 12 41 30 23 Guns 104 | . 11 7 . 12 40 16 18 Cannons 1 | . . . . . 1 . . AOE 15 | . . . . . . 14 1 Classes Destroyed 17 | 2 6 . . 2 6 . 1 Worker 9 | . 3 2 . . 3 . 1 Builder 7 | . 4 1 . . 2 . . Tunneler 7 | 3 3 . . . 1 . . Hauler 8 | . 1 . . . 6 . 1 Recycler 8 | 1 1 2 . . 1 . 3 Mechanic 1 | . . . . . 1 . . Operator 3 | . . . . . 3 . . Watcher 9 | . 3 . . . 5 . 1 Swarmer 16 | . 3 3 . . 6 4 . Grunt 53 | . 8 4 . 1 19 17 4 Brawler 4 | . . . . . 2 2 . Duelist 1 | . . . . . 1 . . Sentry 26 | . . . . . 12 7 7 Demolisher 2 | . . . . 2 . . . Hunter 4 | . . . . . 1 . 3 Programmer 6 | . . . . . . . 6 Assembled 12 | . . . . 9 . . 3 Best Kill Streak 9 | 3 7 5 . 4 5 9 4 Combat Bots Only 9 | . 6 5 . 4 4 9 4 Max Kills in Single Turn 3 | 1 2 1 . 2 2 3 2 Gunslinging 1 | . . . . 1 1 . . Exploded 3 | . . . . . . 3 1 Melee . | . . . . . . . . Uniques/NPCs Destroyed . | . . . . . . . . Combat | -11 -10 -10 -10 -9 -8 -8 -7 -------- Run | Jun Mat Min Exi Min Mat Gar Fac Damage Taken 4859 | . 434 355 . 237 1451 861 1521 Core 480 | . 53 61 . 20 123 57 166 Absorbed by Shields 80 | . . . . . 32 . 48 Regen/Repaired (Parts) 668 | . 115 . . . 466 . 87 Core Remaining (%) 71 | 100 . . . 46 . 67 . Volleys Fired 416 | 14 58 36 . 21 149 74 64 Largest 2 | 2 2 2 . 2 2 2 2 Hottest 160 | 40 85 85 . 98 118 94 160 Shots Fired 812 | 28 115 71 . 42 297 130 129 Gun 777 | 28 115 71 . 42 283 109 129 Cannon 14 | . . . . . 14 . . Launcher 21 | . . . . . . 21 . Special . | . . . . . . . . Kinetic 366 | 28 68 36 . 21 150 53 10 Thermal 425 | . 47 35 . 21 147 56 119 Explosive 21 | . . . . . . 21 . Electromagnetic . | . . . . . . . . Robot Hit Streak 34 | 9 17 8 . 7 34 19 34 Robot Miss Streak 4 | 2 3 2 . 2 4 2 3 Penetration Max 1 | . . . . . 1 . . Secondary Targets 11 | . 3 . . 2 4 2 . Max Gunslinging Chain 1 | . 1 . . 1 1 1 . Shots Hit Robots 606 | 19 83 48 3 27 230 76 120 Core Hits 314 | 6 36 16 . 18 95 54 89 Critical Kills 2 | . . . . . 1 . 1 Critical Parts Destroyed 6 | . . 1 . . 4 1 . Critical Strikes 29 | . 2 4 . 3 16 2 2 Burn 20 | . 2 3 . 3 10 1 1 Destroy 9 | . . 1 . . 6 1 1 Melee Attacks 6 | . . . 3 . . . 3 Impact . | . . . . . . . . Slashing 3 | . . . . . . . 3 Piercing . | . . . . . . . . Sneak Attacks 3 | . . . 3 . . . . Combat Hostiles . | . . . . . . . . Follow-up Attacks . | . . . . . . . . Damage Inflicted 14049 | 202 1249 742 . 494 4874 2726 3762 Guns 11705 | 202 1127 742 . 494 4693 1276 3171 Cannons 181 | . . . . . 181 . . Explosions 2163 | . 122 . . . . 1450 591 Melee . | . . . . . . . . Ramming . | . . . . . . . . Kinetic 4419 | 202 609 313 . 182 2433 524 156 Thermal 8180 | . 640 429 . 312 2441 752 3606 Explosive 1450 | . . . . . . 1450 . Electromagnetic . | . . . . . . . . Impact . | . . . . . . . . Slashing . | . . . . . . . . Piercing . | . . . . . . . . Highest Corruption 12 | . . . . 12 1 1 5 Average Corruption 1 | . . . . 7 1 1 1 Corruption Purged . | . . . . . . . . Corruption Blocked . | . . . . . . . . Effects 36 | . . . . 1 13 13 9 Message Errors 9 | . . . . . 4 5 . Matter Fused 9 | . . . . . 4 3 2 Heat Flow Errors 2 | . . . . . . 1 1 Energy Discharges 3 | . . . . . 1 1 1 Data Loss (minor) 5 | . . . . 1 . 2 2 Data Loss (major) 4 | . . . . . 2 . 2 Misfires 3 | . . . . . 1 1 1 Alerts 1 | . . . . . 1 . . Overload Shots . | . . . . . . . . Overflow Damage 121 | . . . . . . 21 100 Projectiles . | . . . . . . . . Explosions 121 | . . . . . . 21 100 Melee . | . . . . . . . . Knockbacks 3 | . . . . . 3 . . Impact . | . . . . . . . . Kinetic 3 | . . . . . 3 . . Secondary . | . . . . . . . . Self-Inflicted Damage 271 | . 28 . . . . 64 179 Shots 4 | . 1 . . . . 1 2 Rammed . | . . . . . . . . Targets Rammed . | . . . . . . . . Kicked . | . . . . . . . . Crushed . | . . . . . . . . Highest Temperature 318 | . 250 318 . 290 294 146 223 Average Temperature 68 | . 65 107 . 85 72 18 17 Received Heat Transfer 1933 | . 198 147 . 46 633 549 360 Effects 8 | . . 3 . 2 3 . . Energy Bleed 5 | . . 2 . 2 1 . . Interference 3 | . . 1 . . 2 . . Siege Activations . | . . . . . . . . Robots Corrupted . | . . . . . . . . Combat Hostiles . | . . . . . . . . Parts Fried . | . . . . . . . . Impact Corruptions . | . . . . . . . . Robots Melted 4 | . . . . . . . 4 Combat Hostiles 4 | . . . . . . . 4 Parts Melted 31 | . 1 1 . . 5 2 22 Heat Transferred 16737 | . 1469 1184 . 777 5143 1406 6758 Parts Sabotaged . | . . . . . . . . Parts Stolen . | . . . . . . . . Parts Stripped . | . . . . . . . . Power Chain Reactions . | . . . . . . . . Missiles Intercepted . | . . . . . . . . Alert | -11 -10 -10 -10 -9 -8 -8 -7 ------- Run | Jun Mat Min Exi Min Mat Gar Fac Peak Influence 1347 | 20 205 170 . 82 267 1347 683 Initial 612 | . 11 2 . . . 2 612 Average 246 | 8 58 44 . 23 73 864 408 Maximum Alert Level 4 | . 1 . . . 1 4 2 Low Security (%) 66 | 100 99 100 . 100 95 8 9 Level 1 11 | . . . . . 4 9 42 Level 2 11 | . . . . . . 10 48 Level 3 5 | . . . . . . 38 . Level 4 4 | . . . . . . 32 . Level 5 . | . . . . . . . . High Security . | . . . . . . . . Max Security . | . . . . . . . . Squads Dispatched 18 | . 1 . . . 8 . 9 Investigation 6 | . 1 . . . 3 . 2 Extermination 5 | . . . . . . . 5 Reinforcement 4 | . . . . . 2 . 2 Assault . | . . . . . . . . Garrison 3 | . . . . . 3 . . Intercept . | . . . . . . . . Searches Triggered . | . . . . . . . . Construction Impeded . | . . . . . . . . Haulers Reinforced 1 | . . . . . . . 1 Active Scanning Responses . | . . . . . . . . Cargo Convoy Interrupts . | . . . . . . . . Stealth | -11 -10 -10 -10 -9 -8 -8 -7 --------- Run | Jun Mat Min Exi Min Mat Gar Fac Distress Signals 7 | . . . . . 6 . 1 Communications Jammed . | . . . . . . . . Distress Signals . | . . . . . . . . Times Spotted 168 | . 15 11 . 17 62 32 31 Peak Tracking Total 9 | . 5 3 . 9 5 6 4 Tactical Retreats 5 | . . . . . . 4 1 Traps | -11 -10 -10 -10 -9 -8 -8 -7 ------- Run | Jun Mat Min Exi Min Mat Gar Fac Traps Triggered 17 | . 1 2 . . 1 10 3 Indirectly . | . . . . . . . . Trap Hack Attempts 95 | . . . . . 61 16 18 Triggered . | . . . . . . . . Disarmed 2 | . . . . . 1 1 . Reprogrammed 10 | . . . . . 8 . 2 Reused 3 | . . . . . . . 3 Traps Extracted 6 | . . . . . 6 . . Installed 3 | . . . . . . . 3 Triggered 3 | . . . . . . . 3 Most Traps Carried 6 | . . . . . 6 6 6 Machines | -11 -10 -10 -10 -9 -8 -8 -7 ---------- Run | Jun Mat Min Exi Min Mat Gar Fac Machines Disabled 20 | . 3 . . . 4 10 3 Max in Single Turn 3 | . 3 . . . 1 2 3 Garrison Access 1 | . . . . . . . 1 Garrison Relay 3 | . . . . . . 3 . Phase Generator 1 | . . . . . . 1 . Machines Repaired . | . . . . . . . . Machines Sabotaged . | . . . . . . . . Overloaded Fab Kills . | . . . . . . . . Hacking | -11 -10 -10 -10 -9 -8 -8 -7 --------- Run | Jun Mat Min Exi Min Mat Gar Fac Machines Accessed 43 | . 10 1 2 . 18 2 10 Terminals 24 | . 7 . . . 11 2 4 Fabricators 2 | . . . . . . . 2 Repair Stations 4 | . 1 . . . 2 . 1 Recycling Units 6 | . 2 . . . 2 . 2 Scanalyzers 2 | . . . . . 2 . . Garrison Access 2 | . . . . . 1 . 1 Total Hacks 127 | . 28 1 6 . 65 5 22 Successful 93 | . 21 1 6 . 46 2 17 Failed 33 | . 6 . . . 19 3 5 Catastrophic 3 | . 1 . . . 2 . . Database Lockouts 1 | . 1 . . . . . . Manual 69 | . 16 . 1 . 38 . 14 Terminals 73 | . 21 . . . 36 5 11 Fabricators 5 | . . . . . . . 5 Repair Stations 17 | . 4 . . . 11 . 2 Recycling Units 12 | . 3 . . . 6 . 3 Scanalyzers 11 | . . . . . 11 . . Garrison Access 2 | . . . . . 1 . 1 Terminal Hacks 38 | . 11 1 6 . 14 2 4 Record 5 | . . . 5 . . . . Part Schematic 5 | . 1 . . . 2 . 2 Robot Analysis 7 | . 2 . . . 5 . . Prototype ID Bank 2 | . 2 . . . . . . Open Door 1 | . . 1 . . . . . Emergency Access Points 1 | . . . . . . 1 . Terminal Index 3 | . 1 . . . 1 . 1 Alert Level 1 | . 1 . . . . . . Locate Traps 3 | . . . . . 3 . . Patrol Status 1 | . 1 . . . . . . Investigation Status 1 | . 1 . . . . . . Hauler Manifests 6 | . 2 . . . 3 . 1 Security Stations 1 | . . . . . . 1 . EX-Prototype ID Bank 1 | . . . 1 . . . . Fabricator Hacks 2 | . . . . . . . 2 Network Status 1 | . . . . . . . 1 Load Schematic 1 | . . . . . . . 1 Repair Station Hacks 16 | . 4 . . . 10 . 2 Scan Component 8 | . 2 . . . 5 . 1 Repair 8 | . 2 . . . 5 . 1 Recycling Unit Hacks 5 | . 2 . . . 2 . 1 Report Inventory 5 | . 2 . . . 2 . 1 Scanalyzer 11 | . . . . . 11 . . Insert Component 6 | . . . . . 6 . . Analyze 5 | . . . . . 5 . . Garrison Access Hacks 2 | . . . . . 1 . 1 Unlock Access 1 | . . . . . 1 . . Seal Access 1 | . . . . . . . 1 Unauthorized Hacks 19 | . 4 . . . 8 . 7 Terminals 10 | . 3 . . . 4 . 3 Assimilate 1 | . . . . . 1 . . Botnet 9 | . 3 . . . 3 . 3 Fabricators 2 | . . . . . . . 2 Haulers 1 | . . . . . . . 1 Recompile 1 | . . . . . . . 1 Repair Stations . | . . . . . . . . Recycling Units 7 | . 1 . . . 4 . 2 Reject 2 | . . . . . 2 . . Recyclers 2 | . . . . . 1 . 1 Mask 1 | . . . . . . . 1 Tunnel 2 | . 1 . . . 1 . . Scanalyzers . | . . . . . . . . Garrison Access . | . . . . . . . . Data Cores Recovered 1 | . . . . . 1 . . Used . | . . . . . . . . Hacking Detections 29 | . 6 . . . 15 1 7 Full Trace Events 4 | . . . . . 2 1 1 Feedback Events 1 | . . . . . 1 . . Corruption 1 | . . . . . 1 . . Feedback Blocked . | . . . . . . . . Robot Schematics Acquired . | . . . . . . . . Robots Built . | . . . . . . . . Authchips . | . . . . . . . . Time . | . . . . . . . . Total Robot Build Rating . | . . . . . . . . Part Schematics Acquired 10 | . 1 . . . 7 . 2 Parts Built . | . . . . . . . . Authchips . | . . . . . . . . Time . | . . . . . . . . Total Part Build Rating . | . . . . . . . . Parts Repaired 8 | . 2 . . . 5 . 1 Time 280 | . 58 . . . 196 . 26 Parts Recycled . | . . . . . . . . Recycled Matter . | . . . . . . . . Retrieved Matter . | . . . . . . . . Retrieved Components . | . . . . . . . . Parts Scanalyzed 5 | . . . . . 5 . . Part Schematics Acquired 5 | . . . . . 5 . . Parts Damaged . | . . . . . . . . Bothacking | -11 -10 -10 -10 -9 -8 -8 -7 ------------ Run | Jun Mat Min Exi Min Mat Gar Fac Used RIF Installer . | . . . . . . . . Robots Hacked 3 | . . . 3 . . . . Non-combat 2 | . . . 2 . . . . Combat 1 | . . . 1 . . . . Robot Hacks Applied 3 | . . . 3 . . . . parse_system 3 | . . . 3 . . . . Relay Couplers Released 11 | . . . . . . 11 . Machine Destruction 11 | . . . . . . 11 . Fabnet Peak Effective % . | . . . . . . . . Robots Rewired . | . . . . . . . . Allies Hacked . | . . . . . . . . Hacks Repelled . | . . . . . . . . Allies | -11 -10 -10 -10 -9 -8 -8 -7 -------- Run | Jun Mat Min Exi Min Mat Gar Fac Total Allies 7 | . . 5 . 1 1 . . Largest Group 3 | . . 3 2 2 1 . . Highest-Rated Group 45 | . . 45 24 31 31 . . Highest-Rated Ally 31 | . . 31 16 31 31 . . Total Orders . | . . . . . . . . Ally Attacks 13 | . . 11 . 2 . . . Total Damage 182 | . . 170 . 12 . . . Kills 3 | . . 2 . 1 . . . Allies Corrupted . | . . . . . . . . Allies Melted . | . . . . . . . . Intel | -11 -10 -10 -10 -9 -8 -8 -7 ------- Run | Jun Mat Min Exi Min Mat Gar Fac Robot Analysis Total 7 | . 2 . . . 5 . . Derelict Logs Recovered 3 | . . 2 . 1 . . . Drone Launches . | . . . . . . . . Drone Recoveries . | . . . . . . . . Exploration | -11 -10 -10 -10 -9 -8 -8 -7 ------------- Run | Jun Mat Min Exi Min Mat Gar Fac Turns Passed 13448 | 86 1493 1426 671 1032 4194 1781 2765 Spaces Moved 5902 | 26 858 599 306 512 1640 768 1193 Core . | . . . . . . . . Treads 1 | . . . . 1 . . . Legs 1 | 1 . . . . . . . Wheels 5900 | 25 858 599 306 511 1640 768 1193 Hover . | . . . . . . . . Flight . | . . . . . . . . Fastest Speed 95 | 95 95 175 215 175 175 190 145 Average Speed 185 | 95 140 214 215 183 190 191 185 Slowest Speed 490 | 120 175 215 215 490 205 205 205 Overloaded Moves . | . . . . . . . . Propulsion Burnouts . | . . . . . . . . Robots Hopped . | . . . . . . . . Cave-ins Triggered . | . . . . . . . . Exploration Rate (%) 66 | 3 99 83 64 86 99 73 28 Regions Visited 7 Branch Regions 3 Pre-discovered Areas 3 | . 1 . 1 . 1 . . Known Exits Taken 1 | . . . . . 1 . . Unknown Exits Taken 5 | 1 1 1 1 1 . . . Scrap Searched 1 | . . 1 . . . . . Spaces Dug 3 | . . . . . . . 3 Terrain Destroyed 306 | . 19 . . 2 6 231 48 Melee 3 | . . . . . . . 3 Projectile 8 | . . . . 2 6 . . AOE 295 | . 19 . . . . 231 45 Terrain Rammed . | . . . . . . . . Walls Destroyed . | . . . . . . . . Machines Disabled . | . . . . . . . . Actions | -11 -10 -10 -10 -9 -8 -8 -7 --------- Run | Jun Mat Min Exi Min Mat Gar Fac Total 7625 | 61 1036 672 318 566 2417 958 1597 Wait 823 | 15 85 12 5 15 443 29 219 Move 5893 | 25 857 598 305 511 1639 765 1193 Hop . | . . . . . . . . Pick Up 76 | 1 13 12 1 5 27 1 16 Fast Attach 43 | 1 5 3 . 1 19 2 12 Attach 29 | 2 1 2 . 1 11 2 10 Detach 22 | 2 1 2 . . 9 1 7 Swap 72 | 1 6 2 2 6 22 19 14 Drop 82 | . 10 5 2 6 37 . 22 Fire 416 | 14 58 36 . 21 149 74 64 Melee 6 | . . . 3 . . . 3 Ram . | . . . . . . . . Kick . | . . . . . . . . Crush . | . . . . . . . . Escape Stasis 64 | . . . . . . 48 16 Rewire 1 | . . . . . . 1 . Trap 98 | . . . . . 61 16 21 Miscellaneous . | . . . . . . . . Route ------- -11/Junkyard -10/Materials (discovered 5 exits: *Mat x3 / *Min x2) -10/Mines (discovered 3 exits: *Mat x2 / *Exi) -10/Exiles -9/Mines -8/Materials (discovered 4 exits: *Fac x3 / Gar) -8/Garrison (discovered 3 exits: *Fac x3) -7/Factory (discovered 3 exits: Sto / [*Low x2]) History --------- Turn | Location | Event 1 | -11/Junkyard | Discovered new exit (range 3) 87 | -11/Junkyard | Entered Materials 303 | -10/Materials | Discovered new exit (range 6) 308 | -10/Materials | Build established: Mutant 642 | -10/Materials | Discovered new exit (range 15) 850 | -10/Materials | Central database locked down 872 | -10/Materials | Build established: Scavenger-Mutant 883 | -10/Materials | Discovered new exit (range 7) 1111 | -10/Materials | Discovered new exit (range 14) 1327 | -10/Materials | Discovered new exit (range 14) 1425 | -10/Materials | Repaired Assault Rifle 1459 | -10/Materials | Repaired Particle Gun 1580 | -10/Materials | Entered Mines 1739 | -10/Mines | Identified exit to Materials 1993 | -10/Mines | Met a Derelict who couldn't figure out how to use a Trap Extractor 2284 | -10/Mines | Found a hidden stash of uninstalled traps 2456 | -10/Mines | Assisted by bots powering up and referring to "LRC-V3" 2768 | -10/Mines | Discovered exit to Materials (range 6) 2828 | -10/Mines | Joined a pair of Derelicts in attacking an 0b10 outpost 2986 | -10/Mines | Deemed a non-threat by the Exiles lab entrance 2986 | -10/Mines | Discovered new exit (range 5) 3006 | -10/Mines | Entered Exiles 3006 | -10/Exiles | Accompanied by 2 allies 3062 | -10/Exiles | Met 8R-AWN 3128 | -10/Exiles | Met EX-HEX 3209 | -10/Exiles | Met EX-BIN 3260 | -10/Exiles | Aligned with FarCom system 3263 | -10/Exiles | Given EX-Vault access code 3312 | -10/Exiles | Opened EX-Vault 3330 | -10/Exiles | Found Firepult 3378 | -10/Exiles | Warned to stay clear of 0b10 Research branches 3439 | -10/Exiles | Met EX-DEC 3500 | -10/Exiles | Learned location of Zion (-7) 3644 | -10/Exiles | Discovered new exit (range 14) 3677 | -10/Exiles | Left Exiles lab with Firepult 3677 | -10/Exiles | Entered Mines 3677 | -9/Mines | Accompanied by 2 allies 3704 | -9/Mines | Received a Rocket Launcher from a helpful Derelict 3771 | -9/Mines | Learned Materials garrison access intel 3843 | -9/Mines | Assembled infested the area 3848 | -9/Mines | Assisted by a Guerilla fighting off Assembled 3926 | -9/Mines | Core integrity fell below 50% 4231 | -9/Mines | Discovered new exit (range 15) 4538 | -9/Mines | Received a Mining Laser from a helpful Derelict 4709 | -9/Mines | System corruption reached 10% 4709 | -9/Mines | Entered Materials 4709 | -8/Materials | Accompanied by 1 ally 4709 | -8/Materials | Evolved 4 slots: Propulsion x1, Utility x3 4710 | -8/Materials | Loaded intel: 1 garrison access location 5337 | -8/Materials | Repaired Imp. Trap Extractor 5365 | -8/Materials | Build established: Scavenger-Skirmisher 5376 | -8/Materials | Repaired Imp. Datajack 5986 | -8/Materials | Discovered new exit (range 14) 6579 | -8/Materials | Discovered new exit (range 8) 7149 | -8/Materials | Build established: Mutant 7403 | -8/Materials | Discovered new exit (range 9) 7526 | -8/Materials | Garrison activated, responded to threat 7906 | -8/Materials | Lost 4 parts (1p1n2u) 8226 | -8/Materials | Repaired Hvy. Armor Plating 8265 | -8/Materials | Repaired Arm. Treads 8305 | -8/Materials | Repaired Arm. Treads 8901 | -8/Materials | Identified exit to Garrison 8903 | -8/Materials | Entered Garrison 8989 | -8/Garrison | Garrison Relay disabled 9002 | -8/Garrison | Triggered checkpoint 9155 | -8/Garrison | Triggered checkpoint 9199 | -8/Garrison | Triggered checkpoint 9225 | -8/Garrison | Triggered checkpoint 9239 | -8/Garrison | Triggered checkpoint 9279 | -8/Garrison | Destroyed 9 combat bots 9386 | -8/Garrison | Triggered checkpoint 9548 | -8/Garrison | Discovered new exit (range 10) 9591 | -8/Garrison | Phase Generator disabled 9831 | -8/Garrison | Discovered new exit (range 9) 9880 | -8/Garrison | Triggered checkpoint 9909 | -8/Garrison | Garrison Relay disabled 10020 | -8/Garrison | Learned Factory security intel 10075 | -8/Garrison | Discovered new exit (range 11) 10215 | -8/Garrison | Triggered checkpoint 10241 | -8/Garrison | Garrison Relay disabled 10398 | -8/Garrison | Attempted to access garrison exit controls, blocked by remote lockdown 10541 | -8/Garrison | Attempted to access garrison exit controls, blocked by remote lockdown 10684 | -8/Garrison | Entered Factory 10684 | -7/Factory | Evolved 2 slots: Propulsion x1, Utility x1 10685 | -7/Factory | Identified exit to Storage 11013 | -7/Factory | Build established: Hacker-Mutant 11660 | -7/Factory | Discovered new exit (range 5) 12314 | -7/Factory | Assembled infested ambush trap array 12918 | -7/Factory | Discovered new exit (range 16) 13142 | -7/Factory | Repaired Lgt. Treads 13449 | -7/Factory | Self-destructed Last Messages --------------- 13351_ Shock Rifle melted. 13351_ Gravmag System melted. 13351_ Remote Datajack melted. 13351_ P-60 Hacker destroyed. 13354_ K-01 Serf collects debris. 13355_ System corrupted: FCS attempts to trigger Gatling Laser. 13355_ System corrupted: Gatling Laser misfires. 13355_ K-01 Serf destroyed. 13355_ W-25 Informer destroyed. 13376_ Acquired 15 matter. 13379_ System corrupted: Component data lost. 13418_ Acquired System Restoration Module. 13449_ Connecting with Recycling Unit... >>Recycling(Report) Matter reserves: 0 Inventory: Spread Laser (100%) Tractor Beam (40%) Sml. Storage Unit (94%) Hover Unit (96%) Map ----- +----------------------------------------------------+ | | | | | | | | | | | | | | | | | | | | | | | | | | | | | | | | | | | | | | | | | | | | | ????????????????????#############????????????????? | | ????????????????????#############????????????????? | | ###?????????????????## ##?#########??????? | | ###?????????????????## ""@ ##?#########??????? | | ########### ???? #### "Y ##?## ??????? | | ########### ???? #### "" ##?## #+????????? | | # ???? + + ! ##### # ????????? | | ### ##### # ???? # ## ##### # ????????? | | # #### # ???? # ## + + ????????? | | ### #### # ???? # ## # # ????????? | | ########## ##????## ############ # ????????? | | ?######### ##????## = # ????????? | | ########## ##????## % ##????????? | | ########## ######## ##????????? | | #### ######## !! ##????????? | | ### #### %=%! ##????????? | | ## ####+########################! ##????????? | | ## # ############ # ##????????? | | ## # ##??????????????? # ???????? | | ## # ##??????????????? # ?????? | | ## #/ ######??????????? + ???? | | ## #####+##########??????????? # ??? | | ## ### ##??????????? # #? | | ## ### ##???????????## ##? | | !## ^""" ### ##??????????? ##? | | ##^ """ ### ##???????????? # ? | | ### """ ### ] ##????????????"" """ "" ??? | | "" ### ##????????????"" """ "? ????? | +----------------------------------------------------+ Best States ------------- Heat Dissipation 61 Energy Generation 16 Energy Capacity 290 Matter Stores 300 Matter Capacity 300 Sight Range 16 Terrain Scan Density 10 Armor Coverage 750 Resistance: KI 20 Resistance: TH 20 Resistance: EX 20 Resistance: EM 20 Resistance: I 20 Resistance: S 20 Resistance: P 20 Evasion (%) 41 Recoil Reduction 2 Offensive Hacking 20 Authchip Count 2 Trap Extractor Capacity 6 Item Schematics ----------------- Lrg. Storage Unit | -10/Materials | Hacked Imp. Datajack | -8/Materials | Scanalyzed Structural Scanner | -8/Materials | Scanalyzed Mic. Nuclear Core | -8/Materials | Scanalyzed Hacking Suite | -8/Materials | Scanalyzed Imp. VTOL Module | -8/Materials | Scanalyzed Imp. Propulsion Shielding | -8/Materials | Hacked System Shield | -8/Materials | Hacked Adv. System Restoration Module | -7/Factory | Hacked Imp. EM Pulse Cannon | -7/Factory | Hacked Robot Schematics ------------------ None Fabricated ------------ Nothing Alien Tech Used ----------------- None Achievements -------------- None Challenges ------------ None Game ------ Seed CloakPotentialMatter Manual? 0 Play Time 01:58:59 Cumulative 164.1 hours Start 2024.01.21 @ 03:12:21 End 2024.01.22 @ 18:59:14 Sessions 5 Manual Loads 0 Difficulty Adventurer Special Mode None Game No. 128 Rogue 0 Adventurer 128 Explorer 0 Win Type - Total 2 Types 2/0/0/0/0/0/0/0/0 Lore% 60 Gallery% 62 Achievement% 53 Wizard Run 0 Options --------- ASCII 0 Keyboard 0 Movement Mouse Keybinds 0 Fullscreen 2 Font 20/SmallcapsGlow Map View 66x50 Tactical HUD 1 Map Filters NONE Filters NONE Steam X RUN: 3cfb8c19-4aaa-4604-8174-bf3768edd328